Cogmind - Beta 12 @@@ ROGUE MODE // 2023.05.15 @ 17:48:30 Player: Mr Goldstein Result: Self-destructed Performance ------------- Evolutions (3) 1500 Regions Visited (6) 1200 Robots Destroyed (11) 55 Value Destroyed (200) 200 Prototype IDs (1) 20 Alien Tech Used (0) 0 Bonus (834) 834 TOTAL SCORE: 3809 Bonus ------- Pacifist 834 Cogmind --------- Core Integrity 436/700 Matter 290/300 Energy 160/160 System Corruption 6% Temperature Cool (18) Movement Hovering (116) Ox1 Location -7/Factory Parts ------- > --- POWER (1) -------- Light Nuclear Core > --- PROPULSION (5) --- Gravmag System Gravmag System > --- UTILITY (5) ------ Hardened Medium Armor Plating Hardened Medium Armor Plating Improved Medium Armor Plating System Shield System Shield > --- WEAPON (2) ------- Power Maul > --- INVENTORY (5) ---- VTOL Module VTOL Module VTOL Module Hacking Suite Hacking Suite Peak State ------------ > --- POWER ------------ Improved Deuterium Engine > --- PROPULSION ------- Gravmag System Gravmag System Gravmag System Gravmag System Gravmag System > --- UTILITY ---------- Hardened Medium Armor Plating Hardened Medium Armor Plating Improved Medium Armor Plating System Shield > --- WEAPON ----------- Power Maul > --- INVENTORY -------- Hacking Suite Hacking Suite System Shield [Rating: 41] Favorites ----------- Power Improved Deuterium Engine Engine Improved Deuterium Engine Power Core Light Nuclear Core Propulsion Gravmag System Treads Improved Treads Hover Unit Gravmag System Flight Unit Cooled Cesium-ion Thruster Utility Hardened Medium Armor Plating Processor Advanced Terrain Scan Processor Hackware System Shield Protection Hardened Medium Armor Plating Weapon Power Maul Impact Weapon Power Maul Build | -11 -10 -9 -8 -7 -7 -7 ------- Run | Jun Mat Mat Mat Fac Was Fac Slots Evolved 6 | . . 2 2 2 . . Power . | . . . . . . . Propulsion 3 | . . 1 1 1 . . Utility 3 | . . 1 1 1 . . Weapon . | . . . . . . . Parts Attached 24 | 2 . . 2 5 1 14 Power 3 | . . . . . . 3 Engine 1 | . . . . . . 1 Core 2 | . . . . . . 2 Reactor . | . . . . . . . Propulsion 13 | 2 . . 2 3 1 5 Treads 7 | 2 . . 2 3 . . Leg . | . . . . . . . Wheel . | . . . . . . . Hover 5 | . . . . . . 5 Flight 1 | . . . . . 1 . Utility 7 | . . . . 2 . 5 Device . | . . . . . . . Storage . | . . . . . . . Processor 2 | . . . . 2 . . Hackware 2 | . . . . . . 2 Protection 3 | . . . . . . 3 Artifact . | . . . . . . . Weapon 1 | . . . . . . 1 Energy Gun . | . . . . . . . Energy Cannon . | . . . . . . . Ballistic Gun . | . . . . . . . Ballistic Cannon . | . . . . . . . Launcher . | . . . . . . . Special Weapon . | . . . . . . . Impact Weapon 1 | . . . . . . 1 Slashing Weapon . | . . . . . . . Piercing Weapon . | . . . . . . . Special Melee Weapon . | . . . . . . . Unidentified Prototypes 1 | . . . . . 1 . Parts Lost 10 | . . . . 4 2 4 Power 1 | . . . . . . 1 Propulsion 8 | . . . . 4 1 3 Utility 1 | . . . . . 1 . Weapon . | . . . . . . . Highest Loss Streak 3 | . . . . 3 2 2 To Critical Strikes . | . . . . . . . Average Slot Usage (%) 51 | . 28 22 30 43 22 69 Engine 1 | . . . . . . 4 Treads 14 | . 28 22 30 32 5 . Hover 16 | . . . . . . 34 Processor 3 | . . . . 9 11 . Hackware 2 | . . . . . . 5 Protection 9 | . . . . . . 18 Impact Weapon 1 | . . . . . . 3 Naked Turns 31 | . . . . . 7 24 Heaviest Build 36 | . . . . . . 36 Greatest Support 45 | 40 3 3 23 23 3 45 Greatest Overweight (x) 1 | . . . . . . 1 Average Overweight (x) . | . . . . . . . Largest Inventory Capacity 5 | 5 5 5 5 5 5 5 Average Capacity 5 | 5 5 5 5 5 5 5 Most Carried 5 | . . . 4 5 5 5 Average Carried 3 | . . . 2 4 5 3 Final Capacity 5 | 5 5 5 5 5 5 5 Final Carried 5 | . . . 4 5 5 5 Class Distribution -------------------- 90% | Mutant 9% | Hacker-Mutant Dominant Class ---------------- Mutant | -10/Materials Mutant | -9/Materials Mutant | -8/Materials Mutant | -7/Factory Mutant | -7/Waste Mutant | -7/Factory Resources | -11 -10 -9 -8 -7 -7 -7 ----------- Run | Jun Mat Mat Mat Fac Was Fac Matter Collected 385 | 168 . . . 71 . 146 Remotely . | . . . . . . . Salvage Created 283 | . . . . . . 283 Parts 5 | . . . . . . 5 Haulers Intercepted . | . . . . . . . Recyclers Shooed . | . . . . . . . Parts Field Recycled . | . . . . . . . Retrieved Matter . | . . . . . . . Parts Self-Destructed . | . . . . . . . Prevented . | . . . . . . . Kills | -11 -10 -9 -8 -7 -7 -7 ------- Run | Jun Mat Mat Mat Fac Was Fac Combat Hostiles Destroyed 6 | . . . . . . 6 Melee 4 | . . . . . . 4 Classes Destroyed 5 | . . . . . . 5 Worker 2 | . . . . . . 2 Builder 1 | . . . . . . 1 Recycler 1 | . . . . . . 1 Watcher 1 | . . . . . . 1 Swarmer 6 | . . . . . . 6 Best Kill Streak 5 | . . . . . . 5 Combat Bots Only 5 | . . . . . . 5 Max Kills in Single Turn 1 | . . . . . . 1 Gunslinging . | . . . . . . . Exploded . | . . . . . . . Melee 1 | . . . . . . 1 Uniques/NPCs Destroyed . | . . . . . . . Combat | -11 -10 -9 -8 -7 -7 -7 -------- Run | Jun Mat Mat Mat Fac Was Fac Damage Taken 1770 | . . 123 20 854 88 685 Core 292 | . . 10 18 130 88 46 Absorbed by Shields . | . . . . . . . Core Remaining (%) 98 | 100 100 97 96 . . . Volleys Fired . | . . . . . . . Largest . | . . . . . . . Hottest . | . . . . . . . Shots Fired . | . . . . . . . Gun . | . . . . . . . Cannon . | . . . . . . . Launcher . | . . . . . . . Special . | . . . . . . . Kinetic . | . . . . . . . Thermal . | . . . . . . . Explosive . | . . . . . . . Electromagnetic . | . . . . . . . Robot Hit Streak . | . . . . . . . Robot Miss Streak . | . . . . . . . Penetration Max . | . . . . . . . Secondary Targets . | . . . . . . . Shots Hit Robots 15 | . . . . . . 15 Core Hits 5 | . . . . . . 5 Critical Kills 1 | . . . . . . 1 Critical Parts Destroyed 5 | . . . . . . 5 Critical Strikes 6 | . . . . . . 6 Smash 6 | . . . . . . 6 Melee Attacks 35 | . . . . . . 35 Impact 35 | . . . . . . 35 Slashing . | . . . . . . . Piercing . | . . . . . . . Sneak Attacks 3 | . . . . . . 3 Combat Hostiles . | . . . . . . . Follow-up Attacks . | . . . . . . . Damage Inflicted 1035 | . . . 5 40 . 990 Guns . | . . . . . . . Cannons . | . . . . . . . Explosions . | . . . . . . . Melee 935 | . . . . . . 935 Ramming 100 | . . . 5 40 . 55 Kinetic . | . . . . . . . Thermal . | . . . . . . . Explosive . | . . . . . . . Electromagnetic . | . . . . . . . Impact 935 | . . . . . . 935 Slashing . | . . . . . . . Piercing . | . . . . . . . Highest Corruption 6 | . . . . . 6 6 Average Corruption 6 | . . . . . 6 6 Corruption Purged . | . . . . . . . Corruption Blocked . | . . . . . . . Effects 10 | . . . . . 2 8 Message Errors 6 | . . . . . 1 5 Matter Fused 3 | . . . . . 1 2 Energy Discharges 1 | . . . . . . 1 Overload Shots . | . . . . . . . Overflow Damage 436 | . . . . . . 436 Projectiles . | . . . . . . . Explosions . | . . . . . . . Melee 436 | . . . . . . 436 Knockbacks 4 | . . . . . . 4 Impact 4 | . . . . . . 4 Kinetic . | . . . . . . . Secondary . | . . . . . . . Self-Inflicted Damage 47 | . . . 2 18 . 27 Shots . | . . . . . . . Rammed 10 | . . . 1 8 . 1 Targets Rammed 10 | . . . 1 8 . 1 Kicked . | . . . . . . . Crushed . | . . . . . . . Highest Temperature 110 | . . . . . . 110 Average Temperature 46 | . . . . . . 46 Received Heat Transfer 174 | . . 81 9 54 . 30 Siege Activations . | . . . . . . . Robots Corrupted . | . . . . . . . Combat Hostiles . | . . . . . . . Parts Fried 9 | . . . . . . 9 Impact Corruptions 12 | . . . . . . 12 Robots Melted . | . . . . . . . Combat Hostiles . | . . . . . . . Parts Melted . | . . . . . . . Heat Transferred . | . . . . . . . Parts Sabotaged . | . . . . . . . Parts Stolen . | . . . . . . . Parts Stripped . | . . . . . . . Power Chain Reactions . | . . . . . . . Missiles Intercepted . | . . . . . . . Alert | -11 -10 -9 -8 -7 -7 -7 ------- Run | Jun Mat Mat Mat Fac Was Fac Peak Influence 297 | . . 60 55 229 73 297 Initial 73 | . . . 25 24 73 37 Average 86 | . . 24 28 108 69 102 Maximum Alert Level 1 | . . . . 1 . 1 Low Security (%) 85 | 100 100 100 100 81 100 80 Level 1 14 | . . . . 18 . 19 Level 2 . | . . . . . . . Level 3 . | . . . . . . . Level 4 . | . . . . . . . Level 5 . | . . . . . . . High Security . | . . . . . . . Max Security . | . . . . . . . Squads Dispatched 3 | . . . . 3 . . Investigation 2 | . . . . 2 . . Extermination . | . . . . . . . Reinforcement 1 | . . . . 1 . . Assault . | . . . . . . . Garrison . | . . . . . . . Intercept . | . . . . . . . Searches Triggered . | . . . . . . . Construction Impeded . | . . . . . . . Haulers Reinforced . | . . . . . . . Active Scanning Responses . | . . . . . . . Cargo Convoy Interrupts . | . . . . . . . Stealth | -11 -10 -9 -8 -7 -7 -7 --------- Run | Jun Mat Mat Mat Fac Was Fac Distress Signals 5 | . . . 1 3 . 1 Communications Jammed . | . . . . . . . Distress Signals . | . . . . . . . Times Spotted 53 | . . 5 5 23 6 14 Peak Tracking Total 13 | . . 5 5 13 6 7 Tactical Retreats 5 | . . . . 3 . 2 Traps | -11 -10 -9 -8 -7 -7 -7 ------- Run | Jun Mat Mat Mat Fac Was Fac Traps Triggered 1 | . . . . 1 . . Indirectly . | . . . . . . . Trap Hack Attempts . | . . . . . . . Triggered . | . . . . . . . Disarmed . | . . . . . . . Reprogrammed . | . . . . . . . Reused . | . . . . . . . Traps Extracted . | . . . . . . . Installed . | . . . . . . . Triggered . | . . . . . . . Machines | -11 -10 -9 -8 -7 -7 -7 ---------- Run | Jun Mat Mat Mat Fac Was Fac Machines Disabled . | . . . . . . . Max in Single Turn . | . . . . . . . Machines Repaired . | . . . . . . . Machines Sabotaged . | . . . . . . . Overloaded Fab Kills . | . . . . . . . Hacking | -11 -10 -9 -8 -7 -7 -7 --------- Run | Jun Mat Mat Mat Fac Was Fac Machines Accessed 2 | . . . . 2 . . Terminals 2 | . . . . 2 . . Fabricators . | . . . . . . . Repair Stations . | . . . . . . . Recycling Units . | . . . . . . . Scanalyzers . | . . . . . . . Garrison Access . | . . . . . . . Total Hacks 5 | . . . . 5 . . Successful . | . . . . . . . Failed 5 | . . . . 5 . . Catastrophic 3 | . . . . 3 . . Database Lockouts . | . . . . . . . Manual 3 | . . . . 3 . . Terminals 5 | . . . . 5 . . Fabricators . | . . . . . . . Repair Stations . | . . . . . . . Recycling Units . | . . . . . . . Scanalyzers . | . . . . . . . Garrison Access . | . . . . . . . Terminal Hacks . | . . . . . . . Fabricator Hacks . | . . . . . . . Repair Station Hacks . | . . . . . . . Recycling Unit Hacks . | . . . . . . . Scanalyzer . | . . . . . . . Garrison Access Hacks . | . . . . . . . Unauthorized Hacks . | . . . . . . . Terminals . | . . . . . . . Fabricators . | . . . . . . . Repair Stations . | . . . . . . . Recycling Units . | . . . . . . . Scanalyzers . | . . . . . . . Garrison Access . | . . . . . . . Data Cores Recovered . | . . . . . . . Used . | . . . . . . . Hacking Detections 2 | . . . . 2 . . Full Trace Events 2 | . . . . 2 . . Feedback Events . | . . . . . . . Feedback Blocked . | . . . . . . . Robot Schematics Acquired . | . . . . . . . Robots Built . | . . . . . . . Authchips . | . . . . . . . Time . | . . . . . . . Total Robot Build Rating . | . . . . . . . Part Schematics Acquired . | . . . . . . . Parts Built . | . . . . . . . Authchips . | . . . . . . . Time . | . . . . . . . Total Part Build Rating . | . . . . . . . Parts Repaired . | . . . . . . . Time . | . . . . . . . Parts Recycled . | . . . . . . . Recycled Matter . | . . . . . . . Retrieved Matter . | . . . . . . . Retrieved Components . | . . . . . . . Parts Scanalyzed . | . . . . . . . Part Schematics Acquired . | . . . . . . . Parts Damaged . | . . . . . . . Bothacking | -11 -10 -9 -8 -7 -7 -7 ------------ Run | Jun Mat Mat Mat Fac Was Fac Used RIF Installer . | . . . . . . . Robots Hacked . | . . . . . . . Non-combat . | . . . . . . . Combat . | . . . . . . . Robot Hacks Applied . | . . . . . . . Relay Couplers Released . | . . . . . . . Fabnet Peak Effective % . | . . . . . . . Robots Rewired . | . . . . . . . Allies Hacked . | . . . . . . . Hacks Repelled . | . . . . . . . Allies | -11 -10 -9 -8 -7 -7 -7 -------- Run | Jun Mat Mat Mat Fac Was Fac Total Allies . | . . . . . . . Largest Group . | . . . . . . . Highest-Rated Group . | . . . . . . . Highest-Rated Ally . | . . . . . . . Total Orders . | . . . . . . . Ally Attacks . | . . . . . . . Total Damage . | . . . . . . . Kills . | . . . . . . . Allies Corrupted . | . . . . . . . Allies Melted . | . . . . . . . Intel | -11 -10 -9 -8 -7 -7 -7 ------- Run | Jun Mat Mat Mat Fac Was Fac Robot Analysis Total . | . . . . . . . Derelict Logs Recovered . | . . . . . . . Drone Launches . | . . . . . . . Drone Recoveries . | . . . . . . . Exploration | -11 -10 -9 -8 -7 -7 -7 ------------- Run | Jun Mat Mat Mat Fac Was Fac Turns Passed 890 | 22 26 65 61 255 41 420 Spaces Moved 1446 | 25 51 129 103 469 79 590 Core 894 | 19 51 129 102 468 79 46 Treads 8 | 6 . . 1 1 . . Legs . | . . . . . . . Wheels . | . . . . . . . Hover 544 | . . . . . . 544 Flight . | . . . . . . . Fastest Speed 44 | 50 50 50 50 50 50 44 Average Speed 48 | 76 50 50 51 50 50 45 Slowest Speed 160 | 160 50 50 160 160 50 112 Overloaded Moves . | . . . . . . . Propulsion Burnouts . | . . . . . . . Robots Hopped . | . . . . . . . Cave-ins Triggered . | . . . . . . . Exploration Rate (%) 24 | 3 17 18 17 18 81 14 Regions Visited 6 Branch Regions . Pre-discovered Areas . | . . . . . . . Known Exits Taken . | . . . . . . . Unknown Exits Taken 4 | 1 1 1 1 . . . Scrap Searched . | . . . . . . . Spaces Dug 15 | . . . . . . 15 Terrain Destroyed 15 | . . . . . . 15 Melee 15 | . . . . . . 15 Projectile . | . . . . . . . AOE . | . . . . . . . Terrain Rammed . | . . . . . . . Walls Destroyed . | . . . . . . . Machines Disabled . | . . . . . . . Actions | -11 -10 -9 -8 -7 -7 -7 --------- Run | Jun Mat Mat Mat Fac Was Fac Total 1549 | 26 50 128 109 489 79 668 Wait 22 | . . . . . . 22 Move 1441 | 24 50 128 102 469 78 590 Hop . | . . . . . . . Pick Up 12 | . . . 4 3 . 5 Fast Attach 17 | 2 . . 2 3 1 9 Attach 5 | . . . . . . 5 Detach . | . . . . . . . Swap 2 | . . . . 2 . . Drop 5 | . . . . 4 . 1 Fire . | . . . . . . . Melee 35 | . . . . . . 35 Ram 10 | . . . 1 8 . 1 Kick . | . . . . . . . Crush . | . . . . . . . Escape Stasis . | . . . . . . . Rewire . | . . . . . . . Trap . | . . . . . . . Miscellaneous . | . . . . . . . Route ------- -11/Junkyard -10/Materials -9/Materials -8/Materials -7/Factory -7/Waste -7/Factory History --------- Turn | Location | Event 2 | -11/Junkyard | Discovered new exit (range 16) 23 | -11/Junkyard | Entered Materials 45 | -10/Materials | Discovered new exit (range 9) 49 | -10/Materials | Entered another Materials area 49 | -9/Materials | Evolved 2 slots: Propulsion x1, Utility x1 112 | -9/Materials | Discovered new exit (range 5) 114 | -9/Materials | Entered another Materials area 114 | -8/Materials | Evolved 2 slots: Propulsion x1, Utility x1 169 | -8/Materials | Discovered new exit (range 11) 175 | -8/Materials | Entered Factory 175 | -7/Factory | Evolved 2 slots: Propulsion x1, Utility x1 305 | -7/Factory | Build established: Mutant 430 | -7/Factory | Sucked down chute 430 | -7/Factory | Entered Waste 445 | -7/Waste | EMP discharged 457 | -7/Waste | Spotted C-40 Crusher 458 | -7/Waste | Lost 3 parts (3n) 458 | -7/Waste | Spotted C-40 Crusher 459 | -7/Waste | Spotted C-40 Crusher 460 | -7/Waste | Spotted C-40 Crusher 462 | -7/Waste | Crushed by Compactor (1 part destroyed, 1 dropped) 462 | -7/Waste | Spotted C-40 Crusher 463 | -7/Waste | Spotted C-40 Crusher 463 | -7/Waste | Discovered new exit (range 14) 464 | -7/Waste | Crushed by Compactor (1 part destroyed, 1 dropped) 471 | -7/Waste | Entered Factory 891 | -7/Factory | Self-destructed Last Messages --------------- 00871_ Destroyed Wheel. 00871_ U-05 Engineer system corrupted by crushing effect. 00871_ Terrain Scan Processor fried. 00871_ U-05 Engineer destroyed. 00874_ Sneak attack on K-01 Serf. 00874_ K-01 Serf destroyed. 00875_ Acquired 24 matter. 00881_ W-25 Informer sends out distress signal. 00882_ Sneak attack on R-06 Scavenger. 00882_ R-06 Scavenger suffers critical hit (Smash). 00882_ Destroyed Com. Wheel. 00882_ R-06 Scavenger system corrupted by crushing effect. 00882_ R-06 Scavenger knocked back. 00883_ R-06 Scavenger system terminally corrupted. 00883_ Lgt. Ion Engine fried. 00885_ K-01 Serf collects debris. 00888_ Gravmag System destroyed. 00888_ K-01 Serf collects debris. 00890_ O-24 Administrator: "IFF HANDSHAKE FAILED. SECURING TERMINAL." 00891_ Gravmag System destroyed. Map ----- +----------------------------------------------------+ | ?????????????????????????????????????????????????? | | ?????????????????????????????????????????????????? | | ?????????????????????????????????????????????????? | | ?????????????????????????????????????????????????? | | ?????????????????????????????????????????????????? | | ?????????????????????????????????????????????????? | | ?????????????????????????????????????????????????? | | ?????????????????????????????????????????????????? | | ??????????????????????? ????????????????????????? | | ???????????????????????? ???????????????????????? | | ???????????????????????? ???????????????????????? | | ????????????????????????#p???????????????????????? | | ????????????????????????#Y???????????????????????? | | ????????????????????????# #########??????????????? | | ????????????????????????# #??????????????? | | ????????????????????????# #??????????????? | | ????????????????????????# k #??????????????? | | ????????????????????????# #??????????????? | | ????????????????????????# #??????????????? | | ????????????#####+####### #??????????????? | | ???????????? #??????????????? | | ??????????? % ################ | | ??????????? kw * = | | ???????????? ################ | | ???????????????"""""" #####??????????????# | | ?????????????????"""" @ #??????????????????# | | ?????????????????"""" #??????????????????# | | ?????????????????"""" #??????????????????# | | ???????????????? #??????????????????# | | ??????????????? *= #??????????######??# | | ?????????????? ! *= #??????????#* * #??# | | ????????????? *! #??????????# #??# | | ????????????" o #??????????# ! [#??# | | ????????????? ""T"" #??????????# #### | | ????????????? """"" ####??????????# + | | ?????????????? ? ??????????????# "" # | | ?????????????? ?????? ??????????????# "T # | | ??????????????????????? ??????????????# "" # " | | ??????????????????????? ??????????????# # " | | ??????????????????????? ??????????????###### " | | ???????????????????????###???????????????????# | | ?????????????????????????????????????????????# " | | ?????????????????????????????????????????????# " | | ????????????????????????????????????????????? " | | ?????????????????????????????????????????????# | | ?????????????????????????????????????????????# " | | ?????????????????????????????????????????????# " | | ?????????????????????????????????????????????# " | | ?????????????????????????????????????????????# | | ?????????????????????????????????????????????? ? | +----------------------------------------------------+ Best States ------------- Heat Dissipation 34 Energy Generation 16 Energy Capacity 290 Matter Stores 300 Matter Capacity 300 Sight Range 16 Terrain Scan Density 210 Armor Coverage 675 Evasion (%) 56 Recoil Reduction 2 Defensive Hacking 20 Item Schematics ----------------- None Robot Schematics ------------------ None Fabricated ------------ Nothing Alien Tech Used ----------------- None Achievements -------------- None Challenges ------------ None Game ------ Seed MinesnifferDerelictArmor Manual? 0 Play Time 00:09:41 Cumulative 212.3 hours Start 2023.05.15 @ 17:39:00 End 2023.05.15 @ 17:48:30 Sessions 1 Manual Loads 0 Difficulty Rogue Special Mode None Game No. 624 Rogue 624 Adventurer 0 Explorer 0 Win Type - Total 9 Types 7/0/1/1/0/0/0/0/0 Lore% 82 Gallery% 80 Achievement% 71 Wizard Run 0 Options --------- ASCII 0 Keyboard 0 Movement Numpad Keybinds 0 Fullscreen 1 Font 16/SmallcapsGlow Map View 75x55 Tactical HUD 1 Map Filters NONE Filters NONE Steam 1 RUN: a4d9aaff-bf78-42df-90a4-074b9153e429